[Event "Titled Tuesday Blitz November 22 Late 2022"]
[White "Arbunic Castro, Giovanna"]
[Black "Antonova, Nadezhda"]
[WhiteFideId "3400549"]
[BlackFideId "14700182"]
[WhiteElo "1973"]
[BlackElo "1813"]
[Result "1-0"]
[Round "05"]
[TimeControl "180+1"]
[Date "2022.11.23"]
[WhiteClock "0:00:19"]
[BlackClock "0:00:02"]

1. e4 {[%clk 0:02:59]}  c5 {[%clk 0:02:59]} 2. g3 {[%clk 0:02:58]}  d6 {[%clk 0:02:59]} 3. Bg2 {[%clk 0:02:58]}  g6 {[%clk 0:02:57]} 4. Ne2 {[%clk 0:02:59]}  Bg7 {[%clk 0:02:58]} 5. c3 {[%clk 0:02:59]}  Nf6 {[%clk 0:02:51]} 6. O-O {[%clk 0:02:59]}  O-O {[%clk 0:02:51]} 7. d4 {[%clk 0:02:59]}  cxd4 {[%clk 0:02:50]} 8. cxd4 {[%clk 0:02:59]}  Nc6 {[%clk 0:02:50]} 9. Nbc3 {[%clk 0:02:58]}  a6 {[%clk 0:02:49]} 10. h3 {[%clk 0:02:58]}  Qc7 {[%clk 0:02:42]} 11. Be3 {[%clk 0:02:57]}  b5 {[%clk 0:02:35]} 12. Rc1 {[%clk 0:02:52]}  Qd7 {[%clk 0:02:18]} 13. e5 {[%clk 0:02:43]}  Ne8 {[%clk 0:01:47]} 14. Nd5 {[%clk 0:02:41]}  Bb7 {[%clk 0:01:38]} 15. Nb6 {[%clk 0:02:38]}  Qd8 {[%clk 0:01:29]} 16. Nxa8 {[%clk 0:02:32]}  Qxa8 {[%clk 0:01:29]} 17. exd6 {[%clk 0:02:24]}  Nxd6 {[%clk 0:01:29]} 18. Nf4 {[%clk 0:02:19]}  Nf5 {[%clk 0:01:23]} 19. d5 {[%clk 0:02:12]}  Nxe3 {[%clk 0:01:22]} 20. fxe3 {[%clk 0:02:08]}  Ne5 {[%clk 0:01:12]} 21. e4 {[%clk 0:01:59]}  Nc4 {[%clk 0:01:09]} 22. Qe2 {[%clk 0:01:52]}  Nxb2 {[%clk 0:01:06]} 23. Rc7 {[%clk 0:01:49]}  Nc4 {[%clk 0:00:25]} 24. Rxe7 {[%clk 0:01:38]}  Bd4+ {[%clk 0:00:22]} 25. Kh2 {[%clk 0:01:37]}  Re8 {[%clk 0:00:19]} 26. Rxe8+ {[%clk 0:01:33]}  Qxe8 {[%clk 0:00:20]} 27. Qd3 {[%clk 0:01:27]}  Be5 {[%clk 0:00:20]} 28. Rd1 {[%clk 0:01:04]}  h5 {[%clk 0:00:20]} 29. d6 {[%clk 0:01:01]}  Nxd6 {[%clk 0:00:19]} 30. Nd5 {[%clk 0:01:01]}  h4 {[%clk 0:00:16]} 31. Nf6+ {[%clk 0:00:59]}  Bxf6 {[%clk 0:00:14]} 32. Qxd6 {[%clk 0:00:59]}  hxg3+ {[%clk 0:00:13]} 33. Kh1 {[%clk 0:00:57]}  Kg7 {[%clk 0:00:14]} 34. Qd7 {[%clk 0:00:55]}  Qa8 {[%clk 0:00:12]} 35. Qd3 {[%clk 0:00:44]}  Be5 {[%clk 0:00:12]} 36. Rf1 {[%clk 0:00:41]}  f5 {[%clk 0:00:11]} 37. Qd7+ {[%clk 0:00:37]}  Kh6 {[%clk 0:00:12]} 38. Rg1 {[%clk 0:00:34]}  Bxe4 {[%clk 0:00:10]} 39. Qd2+ {[%clk 0:00:29]}  f4 {[%clk 0:00:09]} 40. Qe2 {[%clk 0:00:26]}  Bxg2+ {[%clk 0:00:09]} 41. Qxg2 {[%clk 0:00:25]}  Qxg2+ {[%clk 0:00:09]} 42. Kxg2 {[%clk 0:00:25]}  Kg5 {[%clk 0:00:09]} 43. Kf3 {[%clk 0:00:24]}  Kf5 {[%clk 0:00:09]} 44. Rc1 {[%clk 0:00:23]}  a5 {[%clk 0:00:08]} 45. Rc5 {[%clk 0:00:22]}  b4 {[%clk 0:00:05]} 46. Rxa5 {[%clk 0:00:21]}  g5 {[%clk 0:00:06]} 47. Rb5 {[%clk 0:00:21]}  g4+ {[%clk 0:00:01]} 48. hxg4+ {[%clk 0:00:19]}  Ke6 {[%clk 0:00:02]} 49. Rxb4 {[%clk 0:00:19]}  Kd5 {[%clk 0:00:02]} 50. Rb5+ {[%clk 0:00:19]} 1-0


[Site "https://www.chess.com"]

[Event "Titled Tuesday Blitz November 22 Late 2022"]
[White "Ardila, Oscar Humberto"]
[Black "Rubio Tent, Francisco"]
[WhiteFideId "4404742"]
[BlackFideId "2238233"]
[WhiteElo "1959"]
[BlackElo "2211"]
[Result "0-1"]
[Round "05"]
[TimeControl "180+1"]
[Date "2022.11.23"]
[WhiteClock "0:00:21"]
[BlackClock "0:00:21"]

1. d4 {[%clk 0:02:58]}  d5 {[%clk 0:02:59]} 2. c4 {[%clk 0:02:55]}  c6 {[%clk 0:02:59]} 3. e3 {[%clk 0:02:33]}  Nf6 {[%clk 0:02:59]} 4. Nf3 {[%clk 0:02:31]}  a6 {[%clk 0:02:58]} 5. Nc3 {[%clk 0:02:26]}  b5 {[%clk 0:02:58]} 6. cxb5 {[%clk 0:02:20]}  cxb5 {[%clk 0:02:58]} 7. Be2 {[%clk 0:02:19]}  Bb7 {[%clk 0:02:58]} 8. O-O {[%clk 0:02:19]}  e6 {[%clk 0:02:59]} 9. a4 {[%clk 0:02:18]}  b4 {[%clk 0:02:59]} 10. Na2 {[%clk 0:02:19]}  Bd6 {[%clk 0:02:59]} 11. Bd2 {[%clk 0:02:18]}  a5 {[%clk 0:02:56]} 12. Bb5+ {[%clk 0:02:18]}  Nbd7 {[%clk 0:02:56]} 13. Nc1 {[%clk 0:02:16]}  O-O {[%clk 0:02:53]} 14. Nd3 {[%clk 0:02:16]}  Ne4 {[%clk 0:02:50]} 15. Rc1 {[%clk 0:02:13]}  Rc8 {[%clk 0:02:45]} 16. Qe2 {[%clk 0:02:10]}  Qf6 {[%clk 0:02:39]} 17. Bxd7 {[%clk 0:02:04]}  Rcd8 {[%clk 0:02:32]} 18. Bc6 {[%clk 0:02:02]}  Ba6 {[%clk 0:02:32]} 19. Bb5 {[%clk 0:02:02]}  Bb7 {[%clk 0:02:32]} 20. Nde5 {[%clk 0:01:58]}  Qh6 {[%clk 0:02:30]} 21. h3 {[%clk 0:01:55]}  f6 {[%clk 0:02:30]} 22. Nc6 {[%clk 0:01:52]}  Ra8 {[%clk 0:02:19]} 23. Be1 {[%clk 0:01:39]}  g5 {[%clk 0:02:13]} 24. Nd2 {[%clk 0:01:38]}  f5 {[%clk 0:02:05]} 25. Nxe4 {[%clk 0:01:37]}  dxe4 {[%clk 0:02:06]} 26. f3 {[%clk 0:01:13]}  exf3 {[%clk 0:01:56]} 27. Qxf3 {[%clk 0:01:09]}  Kh8 {[%clk 0:01:53]} 28. Bg3 {[%clk 0:01:08]}  f4 {[%clk 0:01:52]} 29. exf4 {[%clk 0:01:08]}  gxf4 {[%clk 0:01:53]} 30. Bf2 {[%clk 0:01:06]}  Rac8 {[%clk 0:01:52]} 31. d5 {[%clk 0:01:02]}  e5 {[%clk 0:01:39]} 32. Nxa5 {[%clk 0:00:59]}  Ba8 {[%clk 0:01:24]} 33. Bc6 {[%clk 0:00:58]}  Qg6 {[%clk 0:01:05]} 34. Rfe1 {[%clk 0:00:56]}  Bxc6 {[%clk 0:00:53]} 35. Rxc6 {[%clk 0:00:55]}  Rce8 {[%clk 0:00:49]} 36. Nc4 {[%clk 0:00:49]}  e4 {[%clk 0:00:47]} 37. Bd4+ {[%clk 0:00:49]}  Kg8 {[%clk 0:00:46]} 38. Qg4 {[%clk 0:00:49]}  Qxg4 {[%clk 0:00:33]} 39. hxg4 {[%clk 0:00:49]}  Bb8 {[%clk 0:00:34]} 40. d6 {[%clk 0:00:44]}  Re6 {[%clk 0:00:31]} 41. Be5 {[%clk 0:00:41]}  f3 {[%clk 0:00:29]} 42. gxf3 {[%clk 0:00:41]}  exf3 {[%clk 0:00:30]} 43. Kf2 {[%clk 0:00:42]}  Ba7+ {[%clk 0:00:29]} 44. Kf1 {[%clk 0:00:31]}  f2 {[%clk 0:00:26]} 45. Re2 {[%clk 0:00:31]}  Rh6 {[%clk 0:00:23]} 46. Rxf2 {[%clk 0:00:20]}  Rxf2+ {[%clk 0:00:22]} 47. Ke1 {[%clk 0:00:21]}  Rh1# {[%clk 0:00:21]} 0-1


[Site "https://www.chess.com"]

[Event "Titled Tuesday Blitz November 22 Late 2022"]
[White "Artemenko, Oleg"]
[Black "Araujo Sanchez, Josue"]
[WhiteFideId "14201798"]
[BlackFideId "6416896"]
[WhiteElo "2287"]
[BlackElo "2370"]
[Result "0-1"]
[Round "05"]
[TimeControl "180+1"]
[Date "2022.11.23"]
[WhiteClock "0:00:15"]
[BlackClock "0:00:21"]

1. d4 {[%clk 0:02:56]}  d5 {[%clk 0:02:59]} 2. Nc3 {[%clk 0:02:56]}  Nf6 {[%clk 0:02:59]} 3. Bf4 {[%clk 0:02:56]}  a6 {[%clk 0:02:58]} 4. e3 {[%clk 0:02:55]}  c5 {[%clk 0:02:57]} 5. dxc5 {[%clk 0:02:41]}  e6 {[%clk 0:02:46]} 6. Na4 {[%clk 0:02:40]}  Nbd7 {[%clk 0:02:29]} 7. b4 {[%clk 0:02:39]}  b6 {[%clk 0:02:24]} 8. c6 {[%clk 0:02:35]}  Bxb4+ {[%clk 0:02:24]} 9. c3 {[%clk 0:02:35]}  Ba5 {[%clk 0:02:25]} 10. cxd7+ {[%clk 0:02:35]}  Bxd7 {[%clk 0:02:25]} 11. Ne2 {[%clk 0:02:33]}  Qe7 {[%clk 0:02:15]} 12. Be5 {[%clk 0:02:29]}  Qa3 {[%clk 0:02:13]} 13. Nxb6 {[%clk 0:02:27]}  Bxb6 {[%clk 0:02:12]} 14. Qb3 {[%clk 0:02:25]}  Qa5 {[%clk 0:02:06]} 15. Qb4 {[%clk 0:02:20]}  Bb5 {[%clk 0:01:38]} 16. Nd4 {[%clk 0:02:07]}  Qxb4 {[%clk 0:01:31]} 17. cxb4 {[%clk 0:02:05]}  Bxf1 {[%clk 0:01:27]} 18. Rxf1 {[%clk 0:02:06]}  Kd7 {[%clk 0:01:26]} 19. Ke2 {[%clk 0:02:05]}  Rhc8 {[%clk 0:01:26]} 20. Rfc1 {[%clk 0:02:04]}  Ne8 {[%clk 0:01:26]} 21. Nb3 {[%clk 0:01:58]}  f6 {[%clk 0:01:22]} 22. Bd4 {[%clk 0:01:58]}  Bxd4 {[%clk 0:01:22]} 23. exd4 {[%clk 0:01:59]}  Nd6 {[%clk 0:01:22]} 24. Nc5+ {[%clk 0:01:59]}  Ke7 {[%clk 0:01:22]} 25. Kd3 {[%clk 0:01:59]}  Nc4 {[%clk 0:01:21]} 26. f4 {[%clk 0:01:57]}  Rc6 {[%clk 0:01:14]} 27. Re1 {[%clk 0:01:56]}  Kf7 {[%clk 0:01:14]} 28. Re2 {[%clk 0:01:52]}  Rb8 {[%clk 0:01:10]} 29. Rb1 {[%clk 0:01:44]}  f5 {[%clk 0:01:00]} 30. Rbe1 {[%clk 0:01:37]}  Rxb4 {[%clk 0:00:35]} 31. Nxe6 {[%clk 0:01:35]}  Rc8 {[%clk 0:00:19]} 32. Ng5+ {[%clk 0:01:30]}  Kg6 {[%clk 0:00:19]} 33. Re6+ {[%clk 0:01:13]}  Kh5 {[%clk 0:00:20]} 34. Ke2 {[%clk 0:01:09]}  Rb2+ {[%clk 0:00:17]} 35. Kf3 {[%clk 0:01:09]}  Nd2+ {[%clk 0:00:15]} 36. Kg3 {[%clk 0:01:09]}  Rc3+ {[%clk 0:00:14]} 37. Nf3 {[%clk 0:00:56]}  Ne4+ {[%clk 0:00:14]} 38. Kh3 {[%clk 0:00:57]}  g5 {[%clk 0:00:09]} 39. fxg5 {[%clk 0:00:48]}  Nxg5+ {[%clk 0:00:10]} 40. Kg3 {[%clk 0:00:42]}  Nxe6 {[%clk 0:00:11]} 41. Rxe6 {[%clk 0:00:42]}  Rcc2 {[%clk 0:00:11]} 42. Kf4 {[%clk 0:00:38]}  Rxg2 {[%clk 0:00:11]} 43. Re7 {[%clk 0:00:34]}  Kg6 {[%clk 0:00:10]} 44. Nh4+ {[%clk 0:00:33]}  Kf6 {[%clk 0:00:10]} 45. Rxh7 {[%clk 0:00:31]}  Rbf2+ {[%clk 0:00:09]} 46. Ke3 {[%clk 0:00:26]}  Re2+ {[%clk 0:00:10]} 47. Kf3 {[%clk 0:00:25]}  Rxh2 {[%clk 0:00:10]} 48. Ra7 {[%clk 0:00:21]}  Rxa2 {[%clk 0:00:09]} 49. Kg3 {[%clk 0:00:18]}  Rhd2 {[%clk 0:00:08]} 50. Nf3 {[%clk 0:00:18]}  Rd3 {[%clk 0:00:07]} 51. Rb7 {[%clk 0:00:08]}  Raa3 {[%clk 0:00:06]} 52. Rb6+ {[%clk 0:00:08]}  Ke7 {[%clk 0:00:07]} 53. Kf4 {[%clk 0:00:08]}  Rxf3+ {[%clk 0:00:08]} 54. Ke5 {[%clk 0:00:09]}  Rae3+ {[%clk 0:00:08]} 55. Kxd5 {[%clk 0:00:09]}  f4 {[%clk 0:00:08]} 56. Rxa6 {[%clk 0:00:09]}  Kf7 {[%clk 0:00:08]} 57. Ra7+ {[%clk 0:00:09]}  Kf6 {[%clk 0:00:09]} 58. Ra6+ {[%clk 0:00:09]}  Kg5 {[%clk 0:00:09]} 59. Ra8 {[%clk 0:00:10]}  Rf1 {[%clk 0:00:10]} 60. Rf8 {[%clk 0:00:10]}  Rd1 {[%clk 0:00:09]} 61. Kc6 {[%clk 0:00:11]}  Red3 {[%clk 0:00:09]} 62. d5 {[%clk 0:00:12]}  Rxd5 {[%clk 0:00:09]} 63. Rg8+ {[%clk 0:00:12]}  Kf5 {[%clk 0:00:09]} 64. Kc7 {[%clk 0:00:12]}  Rc5+ {[%clk 0:00:09]} 65. Kb6 {[%clk 0:00:12]}  Rcc1 {[%clk 0:00:10]} 66. Rf8+ {[%clk 0:00:11]}  Kg4 {[%clk 0:00:11]} 67. Rg8+ {[%clk 0:00:11]}  Kf3 {[%clk 0:00:12]} 68. Rg5 {[%clk 0:00:12]}  Rd2 {[%clk 0:00:12]} 69. Rb5 {[%clk 0:00:11]}  Rd6+ {[%clk 0:00:12]} 70. Kb7 {[%clk 0:00:11]}  Rcc6 {[%clk 0:00:11]} 71. Rb3+ {[%clk 0:00:10]}  Kg4 {[%clk 0:00:12]} 72. Ra3 {[%clk 0:00:09]}  Rb6+ {[%clk 0:00:12]} 73. Kc7 {[%clk 0:00:10]}  Rdc6+ {[%clk 0:00:13]} 74. Kd7 {[%clk 0:00:10]}  Rh6 {[%clk 0:00:13]} 75. Kc7 {[%clk 0:00:09]}  Rbg6 {[%clk 0:00:14]} 76. Rd3 {[%clk 0:00:08]}  Rh7+ {[%clk 0:00:15]} 77. Rd7 {[%clk 0:00:08]}  Rxd7+ {[%clk 0:00:15]} 78. Kxd7 {[%clk 0:00:08]}  f3 {[%clk 0:00:16]} 79. Ke7 {[%clk 0:00:09]}  Rg5 {[%clk 0:00:17]} 80. Kf7 {[%clk 0:00:09]}  f2 {[%clk 0:00:17]} 81. Kf6 {[%clk 0:00:10]}  f1=Q+ {[%clk 0:00:18]} 82. Ke6 {[%clk 0:00:11]}  Qf4 {[%clk 0:00:19]} 83. Ke7 {[%clk 0:00:11]}  Re5+ {[%clk 0:00:18]} 84. Kd7 {[%clk 0:00:12]}  Qd4+ {[%clk 0:00:19]} 85. Kc8 {[%clk 0:00:13]}  Rc5+ {[%clk 0:00:20]} 86. Kb7 {[%clk 0:00:14]}  Qb4+ {[%clk 0:00:21]} 87. Ka8 {[%clk 0:00:15]}  Ra5# {[%clk 0:00:21]} 0-1


[Site "https://www.chess.com"]

[Event "Titled Tuesday Blitz November 22 Late 2022"]
[White "Aung Thant Zin"]
[Black "Rosenberg, Evan S"]
[WhiteFideId "13000063"]
[BlackFideId "2019299"]
[WhiteElo "2278"]
[BlackElo "2388"]
[Result "0-1"]
[Round "05"]
[TimeControl "180+1"]
[Date "2022.11.23"]
[WhiteClock "0:00:26"]
[BlackClock "0:00:06"]

1. e4 {[%clk 0:02:47]}  e5 {[%clk 0:02:18]} 2. Nf3 {[%clk 0:02:44]}  Nc6 {[%clk 0:02:18]} 3. d4 {[%clk 0:02:44]}  exd4 {[%clk 0:02:16]} 4. Nxd4 {[%clk 0:02:45]}  Nf6 {[%clk 0:02:15]} 5. Nc3 {[%clk 0:02:45]}  Bb4 {[%clk 0:02:14]} 6. Nxc6 {[%clk 0:02:46]}  bxc6 {[%clk 0:02:14]} 7. Bd3 {[%clk 0:02:47]}  d5 {[%clk 0:02:11]} 8. exd5 {[%clk 0:02:48]}  O-O {[%clk 0:02:10]} 9. O-O {[%clk 0:02:48]}  cxd5 {[%clk 0:02:10]} 10. Bg5 {[%clk 0:02:47]}  c6 {[%clk 0:02:10]} 11. h3 {[%clk 0:02:47]}  Bd6 {[%clk 0:02:07]} 12. Qf3 {[%clk 0:02:46]}  Rb8 {[%clk 0:02:07]} 13. Rab1 {[%clk 0:02:45]}  h6 {[%clk 0:02:05]} 14. Bf4 {[%clk 0:02:33]}  Re8 {[%clk 0:01:54]} 15. b3 {[%clk 0:02:30]}  a5 {[%clk 0:01:47]} 16. Na4 {[%clk 0:02:13]}  Bxf4 {[%clk 0:00:57]} 17. Qxf4 {[%clk 0:02:11]}  Rb4 {[%clk 0:00:57]} 18. Qd2 {[%clk 0:02:00]}  Ne4 {[%clk 0:00:55]} 19. Bxe4 {[%clk 0:02:00]}  Rbxe4 {[%clk 0:00:53]} 20. Rfe1 {[%clk 0:01:52]}  Bf5 {[%clk 0:00:47]} 21. Nc5 {[%clk 0:01:46]}  Rxe1+ {[%clk 0:00:46]} 22. Rxe1 {[%clk 0:01:45]}  Rxe1+ {[%clk 0:00:46]} 23. Qxe1 {[%clk 0:01:45]}  Bxc2 {[%clk 0:00:46]} 24. Nb7 {[%clk 0:01:41]}  Qf6 {[%clk 0:00:36]} 25. Nxa5 {[%clk 0:01:38]}  d4 {[%clk 0:00:29]} 26. Qe8+ {[%clk 0:01:33]}  Kh7 {[%clk 0:00:29]} 27. Nxc6 {[%clk 0:01:33]}  d3 {[%clk 0:00:22]} 28. Ne7 {[%clk 0:01:30]}  Qxe7 {[%clk 0:00:10]} 29. Qxe7 {[%clk 0:01:29]}  d2 {[%clk 0:00:10]} 30. Qd7 {[%clk 0:01:19]}  d1=Q+ {[%clk 0:00:10]} 31. Qxd1 {[%clk 0:01:20]}  Bxd1 {[%clk 0:00:11]} 32. f3 {[%clk 0:01:21]}  Kg6 {[%clk 0:00:11]} 33. Kf2 {[%clk 0:01:21]}  Kf5 {[%clk 0:00:10]} 34. Ke3 {[%clk 0:01:22]}  Ke5 {[%clk 0:00:10]} 35. g4 {[%clk 0:01:18]}  f5 {[%clk 0:00:07]} 36. gxf5 {[%clk 0:01:17]}  Kxf5 {[%clk 0:00:07]} 37. b4 {[%clk 0:01:17]}  Ba4 {[%clk 0:00:06]} 38. f4 {[%clk 0:01:15]}  g6 {[%clk 0:00:06]} 39. h4 {[%clk 0:01:15]}  Kg4 {[%clk 0:00:05]} 40. h5 {[%clk 0:01:11]}  Kxh5 {[%clk 0:00:06]} 41. Kd4 {[%clk 0:01:11]}  Kg4 {[%clk 0:00:06]} 42. Kc5 {[%clk 0:01:12]}  Kxf4 {[%clk 0:00:06]} 43. b5 {[%clk 0:01:13]}  Bxb5 {[%clk 0:00:05]} 44. Kxb5 {[%clk 0:01:13]}  h5 {[%clk 0:00:04]} 45. a4 {[%clk 0:01:13]}  h4 {[%clk 0:00:04]} 46. a5 {[%clk 0:01:14]}  h3 {[%clk 0:00:05]} 47. a6 {[%clk 0:01:15]}  h2 {[%clk 0:00:05]} 48. a7 {[%clk 0:01:16]}  h1=Q {[%clk 0:00:06]} 49. Kb6 {[%clk 0:00:26]}  Qa8 {[%clk 0:00:06]} 0-1


[Site "https://www.chess.com"]

[Event "Titled Tuesday Blitz November 22 Late 2022"]
[White "Besedes, Danilo"]
[Black "Schut, Han"]
[WhiteFideId "946796"]
[BlackFideId "1005561"]
[WhiteElo "2352"]
[BlackElo "2024"]
[Result "1-0"]
[Round "05"]
[TimeControl "180+1"]
[Date "2022.11.23"]
[WhiteClock "0:00:17"]
[BlackClock "0:00:15"]

1. b3 {[%clk 0:02:26]}  e5 {[%clk 0:02:59]} 2. Bb2 {[%clk 0:02:24]}  Nc6 {[%clk 0:02:59]} 3. e3 {[%clk 0:02:23]}  Bd6 {[%clk 0:02:59]} 4. Bb5 {[%clk 0:02:23]}  Qe7 {[%clk 0:02:59]} 5. Ne2 {[%clk 0:02:17]}  f5 {[%clk 0:02:57]} 6. O-O {[%clk 0:01:59]}  Nf6 {[%clk 0:02:56]} 7. a4 {[%clk 0:01:50]}  e4 {[%clk 0:02:43]} 8. Na3 {[%clk 0:01:38]}  Bxh2+ {[%clk 0:02:42]} 9. Kxh2 {[%clk 0:01:34]}  Ng4+ {[%clk 0:02:43]} 10. Kg3 {[%clk 0:00:45]}  Qg5 {[%clk 0:02:42]} 11. f4 {[%clk 0:00:43]}  Qg6 {[%clk 0:02:29]} 12. Qe1 {[%clk 0:00:42]}  Nxe3+ {[%clk 0:02:05]} 13. Kf2 {[%clk 0:00:42]}  Qxg2+ {[%clk 0:00:55]} 14. Kxe3 {[%clk 0:00:40]}  Ne7 {[%clk 0:00:51]} 15. d4 {[%clk 0:00:19]}  exd3 {[%clk 0:00:44]} 16. Bxd3 {[%clk 0:00:19]}  O-O {[%clk 0:00:33]} 17. Qg3 {[%clk 0:00:18]}  Nd5+ {[%clk 0:00:32]} 18. Kd2 {[%clk 0:00:19]}  Qxg3 {[%clk 0:00:29]} 19. Nxg3 {[%clk 0:00:19]}  d6 {[%clk 0:00:28]} 20. Bc4 {[%clk 0:00:19]}  c6 {[%clk 0:00:28]} 21. Bxd5+ {[%clk 0:00:18]}  cxd5 {[%clk 0:00:29]} 22. Bd4 {[%clk 0:00:18]}  g6 {[%clk 0:00:26]} 23. Rae1 {[%clk 0:00:18]}  Bd7 {[%clk 0:00:27]} 24. Re7 {[%clk 0:00:17]}  Rf7 {[%clk 0:00:27]} 25. Rfe1 {[%clk 0:00:18]}  Raf8 {[%clk 0:00:26]} 26. Rxf7 {[%clk 0:00:18]}  Rxf7 {[%clk 0:00:26]} 27. Nb1 {[%clk 0:00:19]}  h5 {[%clk 0:00:23]} 28. Nf1 {[%clk 0:00:19]}  Kf8 {[%clk 0:00:20]} 29. Nh2 {[%clk 0:00:18]}  Bc6 {[%clk 0:00:19]} 30. Nf3 {[%clk 0:00:18]}  b6 {[%clk 0:00:19]} 31. Ng5 {[%clk 0:00:18]}  Re7 {[%clk 0:00:20]} 32. Rxe7 {[%clk 0:00:18]}  Kxe7 {[%clk 0:00:21]} 33. Nc3 {[%clk 0:00:18]}  Bb7 {[%clk 0:00:18]} 34. Bf2 {[%clk 0:00:18]}  Kd7 {[%clk 0:00:18]} 35. Ne2 {[%clk 0:00:18]}  Kc6 {[%clk 0:00:18]} 36. Nd4+ {[%clk 0:00:19]}  Kd7 {[%clk 0:00:18]} 37. b4 {[%clk 0:00:19]}  a6 {[%clk 0:00:18]} 38. b5 {[%clk 0:00:19]}  axb5 {[%clk 0:00:17]} 39. axb5 {[%clk 0:00:20]}  Ke7 {[%clk 0:00:16]} 40. Ndf3 {[%clk 0:00:17]}  Kf6 {[%clk 0:00:16]} 41. Bxb6 {[%clk 0:00:17]}  d4 {[%clk 0:00:15]} 42. Bxd4+ {[%clk 0:00:17]} 1-0


[Site "https://www.chess.com"]

[Event "Titled Tuesday Blitz November 22 Late 2022"]
[White "Boruchovsky, Avital"]
[Black "Goroshkov, Maksym"]
[WhiteFideId "2800055"]
[BlackFideId "14142716"]
[WhiteElo "2458"]
[BlackElo "2257"]
[Result "1-0"]
[Round "05"]
[TimeControl "180+1"]
[Date "2022.11.22"]
[WhiteClock "0:01:03"]
[BlackClock "0:00:19"]

1. c4 {[%clk 0:02:53]}  Nf6 {[%clk 0:02:59]} 2. Nc3 {[%clk 0:02:52]}  e5 {[%clk 0:02:59]} 3. Nf3 {[%clk 0:02:52]}  d6 {[%clk 0:02:52]} 4. g3 {[%clk 0:02:48]}  Be7 {[%clk 0:02:49]} 5. Bg2 {[%clk 0:02:48]}  O-O {[%clk 0:02:49]} 6. d4 {[%clk 0:02:47]}  exd4 {[%clk 0:02:49]} 7. Nxd4 {[%clk 0:02:48]}  c5 {[%clk 0:02:48]} 8. Nc2 {[%clk 0:02:45]}  Nc6 {[%clk 0:02:48]} 9. O-O {[%clk 0:02:44]}  Be6 {[%clk 0:02:46]} 10. b3 {[%clk 0:02:41]}  Qc7 {[%clk 0:02:36]} 11. Bb2 {[%clk 0:02:35]}  Rad8 {[%clk 0:02:36]} 12. Ne3 {[%clk 0:02:34]}  Nd4 {[%clk 0:02:31]} 13. Ncd5 {[%clk 0:02:33]}  Bxd5 {[%clk 0:02:22]} 14. Nxd5 {[%clk 0:02:33]}  Nxd5 {[%clk 0:02:20]} 15. Bxd5 {[%clk 0:02:34]}  Bf6 {[%clk 0:02:16]} 16. Rb1 {[%clk 0:02:33]}  Qe7 {[%clk 0:02:15]} 17. Bxd4 {[%clk 0:02:12]}  Bxd4 {[%clk 0:02:12]} 18. e3 {[%clk 0:02:12]}  Bf6 {[%clk 0:02:12]} 19. b4 {[%clk 0:02:08]}  b6 {[%clk 0:02:11]} 20. h4 {[%clk 0:02:06]}  Bc3 {[%clk 0:02:04]} 21. a3 {[%clk 0:02:00]}  g6 {[%clk 0:01:57]} 22. h5 {[%clk 0:01:59]}  Bg7 {[%clk 0:01:55]} 23. Kg2 {[%clk 0:01:57]}  Qg5 {[%clk 0:01:46]} 24. Rh1 {[%clk 0:01:55]}  Rd7 {[%clk 0:01:37]} 25. hxg6 {[%clk 0:01:49]}  hxg6 {[%clk 0:01:36]} 26. Qf3 {[%clk 0:01:48]}  Re7 {[%clk 0:01:22]} 27. Rh4 {[%clk 0:01:43]}  Qf6 {[%clk 0:00:52]} 28. Rf4 {[%clk 0:01:29]}  Qc3 {[%clk 0:00:51]} 29. Rh1 {[%clk 0:01:26]}  Qxa3 {[%clk 0:00:48]} 30. Qg4 {[%clk 0:01:15]}  Re5 {[%clk 0:00:36]} 31. Qxg6 {[%clk 0:01:11]}  Rxd5 {[%clk 0:00:21]} 32. Rh8+ {[%clk 0:01:02]}  Kxh8 {[%clk 0:00:19]} 33. Rh4+ {[%clk 0:01:02]}  Rh5 {[%clk 0:00:19]} 34. Rxh5+ {[%clk 0:01:02]}  Kg8 {[%clk 0:00:19]} 35. Qh7# {[%clk 0:01:03]} 1-0


[Site "https://www.chess.com"]